bitfinex/quotes_SOLUSD_20241113
["timestamp","ask_amount","ask_price","bid_price","bid_amount"]
[1731510264401,27.94,212.68,212.41,23.90267406]
[1731510264623,18.791053,212.69,212.38,23.57815316]
[1731510264795,23.992,212.73,212.38,23.57815316]
[1731510264796,9.962,212.73,212.4,93.29772433]
[1731510265113,28.751581,212.73,212.41,23.90267406]
[1731510265419,18.789581,212.73,212.45,23.04497872]
[1731510265632,12.1077,212.75,212.45,23.14497872]
[1731510265829,18.784787,212.77,212.55,0.1]
[1731510266115,12.4281,212.86,212.59,23.55805569]
[1731510266313,12.4281,212.86,212.58,70.0]
[1731510266523,12.4281,212.86,212.59,23.55805569]
[1731510266904,12.4281,212.86,212.62,23.26576519]
[1731510267116,13.5504629,212.98,212.65,0.1]
[1731510267300,18.771586,212.92,212.74,23.80450986]
[1731510267696,13.5504629,212.98,212.66,31.9642]
[1731510267697,13.5504629,212.98,212.67,23.46190853]
[1731510268129,27.1009259,212.98,212.69,23.34884304]
[1731510268416,13.5504629,212.98,212.69,23.34884304]
[1731510268614,0.7702629,212.98,212.74,23.80450986]
[1731510268817,0.7702629,212.98,212.77,23.67894882]
[1731510269133,0.7702629,212.98,212.74,23.80450986]
[1731510269509,0.7702629,212.98,212.72,23.81286283]
[1731510269901,0.7702629,212.98,212.67,23.46190853]
[1731510270214,0.12549,212.97,212.62,23.26576519]
[1731510270412,0.1,212.92,212.55,25.70470222]
[1731510270720,27.94,212.93,212.57,93.85694475]
[1731510270900,27.94,212.93,212.54,33.0837]
[1731510270901,0.12549,212.88,212.55,23.82710722]
[1731510271101,23.776884,212.86,212.51,70.0]
[1731510271307,23.776884,212.86,212.56,23.52841144]
[1731510272251,23.776884,212.86,212.6,23.70152634]
[1731510272427,0.7702629,212.98,212.65,23.87492587]
[1731510272727,0.7702629,212.98,212.6,93.70152634]
[1731510272903,0.12549,212.93,212.61,23.29821093]
[1731510273235,0.12549,212.93,212.5,0.1]
[1731510273236,0.12549,212.93,212.5,70.0]
[1731510273438,28.06549,212.93,212.54,23.92852193]
[1731510273721,12.2868,212.94,212.58,23.0846197]
[1731510273924,12.2868,212.94,212.62,23.26576519]
[1731510274121,0.12549,212.93,212.59,23.55805569]
[1731510274513,28.06549,212.93,212.54,23.92852193]
[1731510274825,28.06549,212.93,212.56,23.52841144]
[1731510275016,0.12549,212.91,212.56,23.52841144]
[1731510275324,0.12549,212.91,212.55,70.0]
[1731510275325,12.2868,212.94,212.64,23.90045087]
[1731510275525,12.2868,212.94,212.63,70.0]
[1731510275526,12.2868,212.94,212.61,23.29821093]
[1731510275906,12.2868,212.94,212.65,23.87492587]
[1731510276113,12.2868,212.94,212.62,23.26576519]
[1731510276309,12.2868,212.94,212.66,23.21542044]
[1731510276613,12.2868,212.94,212.59,23.55805569]
[1731510276822,0.12549,212.93,212.59,35.84485569]
[1731510277129,28.06549,212.93,212.55,23.82710722]
[1731510277500,0.12549,212.89,212.55,93.82710722]
[1731510277704,23.776884,212.93,212.59,23.55805569]
[1731510278014,12.2868,212.94,212.63,23.5993979]
[1731510278212,10.2868,212.94,212.6,23.70152634]
[1731510278414,10.2868,212.94,212.64,23.90045087]
[1731510278617,28.06549,212.93,212.63,12.2868]
[1731510278821,28.06549,212.93,212.56,23.52841144]
[1731510279036,41.97,212.91,212.58,70.0]
[1731510279328,10.2868,212.94,212.62,23.26576519]
[1731510279505,10.2868,212.94,212.56,29.79252061]
[1731510279704,10.2868,212.94,212.5,4.71688963]
[1731510279705,28.06549,212.93,212.58,23.0846197]
[1731510279911,28.06549,212.93,212.57,70.0]
[1731510279912,28.06549,212.93,212.61,23.29821093]
[1731510280117,27.94,212.93,212.61,23.29821093]
[1731510280437,10.2868,212.94,212.64,70.0]
[1731510280730,10.2868,212.94,212.68,23.0662811]
[1731510280940,10.2868,212.94,212.71,23.45956906]
[1731510281109,10.2868,212.94,212.75,23.25840741]
[1731510281110,10.55559762,212.94,212.75,23.25840741]
[1731510281303,0.5233732,212.94,212.75,23.25840741]
[1731510281733,0.5233732,212.94,212.78,23.45925319]
[1731510282107,0.5233732,212.94,212.82,23.69167768]
[1731510282423,0.5233732,212.94,212.85,23.12257851]
[1731510282621,0.5233732,212.94,212.84,23.44292686]
[1731510282819,0.5233732,212.94,212.9,23.95447263]
[1731510283030,0.5233732,212.94,212.87,23.76553678]
[1731510283228,0.5233732,212.94,212.88,23.06085376]
[1731510283731,0.5233732,212.94,212.87,23.76553678]
[1731510284133,0.5233732,212.94,212.86,23.75127002]
[1731510284430,0.5233732,212.94,212.91,23.83147304]
[1731510285229,0.5233732,212.94,212.88,23.06085376]
[1731510285708,0.5233732,212.94,212.85,6.03082826]
[1731510285709,0.5233732,212.94,212.86,23.75127002]
[1731510285912,0.5233732,212.94,212.88,23.06085376]
[1731510286105,0.5233732,212.94,212.86,23.75127002]
[1731510286345,0.5233732,212.94,212.75,23.25840741]
[1731510286634,0.5233732,212.94,212.78,23.45925319]
[1731510286813,7.32e-05,212.94,212.78,23.45925319]
[1731510287022,7.32e-05,212.94,212.74,23.80450986]
[1731510287326,7.32e-05,212.94,212.73,23.9461174]
[1731510287523,7.32e-05,212.94,212.69,23.34884304]
[1731510287830,7.32e-05,212.94,212.73,1.876546]
[1731510288213,7.32e-05,212.94,212.63,6.68358999]
[1731510288214,0.1255632,212.94,212.64,23.90045087]
[1731510288732,0.32549,212.92,212.52,23.4751635]
[1731510288920,7.32e-05,212.94,212.71,23.45956906]
[1731510289114,7.32e-05,212.94,212.77,23.67894882]
[1731510289715,7.32e-05,212.94,212.72,23.81286283]
[1731510290034,7.32e-05,212.94,212.7,70.0]
[1731510290035,7.32e-05,212.94,212.7,23.17091181]
[1731510290215,7.32e-05,212.94,212.73,23.9461174]
[1731510290614,7.32e-05,212.94,212.67,70.0]
[1731510290615,7.32e-05,212.94,212.68,23.0662811]
[1731510290835,7.32e-05,212.94,212.74,23.80450986]
[1731510291142,7.32e-05,212.94,212.67,76.08023946]
[1731510291143,7.32e-05,212.94,212.7,23.17091181]
[1731510291331,7.32e-05,212.94,212.72,23.81286283]
[1731510291946,7.32e-05,212.94,212.68,23.0662811]
[1731510292121,7.32e-05,212.94,212.53,18.93468716]
[1731510292122,7.32e-05,212.94,212.62,70.0]
[1731510292324,7.32e-05,212.94,212.66,23.21542044]
[1731510292639,7.32e-05,212.94,212.68,23.0662811]
[1731510293314,7.32e-05,212.94,212.68,28.42705962]
[1731510293514,7.32e-05,212.94,212.68,98.42705962]
[1731510293745,7.32e-05,212.94,212.7,23.17091181]
[1731510293944,7.32e-05,212.94,212.7,93.17091181]
[1731510294131,7.32e-05,212.94,212.74,23.80450986]
[1731510294515,7.32e-05,212.94,212.72,23.81286283]
[1731510294720,7.32e-05,212.94,212.74,23.80450986]
[1731510295235,7.32e-05,212.94,212.76,23.18969577]
[1731510296519,7.32e-05,212.94,212.74,23.80450986]
[1731510297141,7.32e-05,212.94,212.73,6.0197427]
[1731510297346,7.32e-05,212.94,212.67,23.46190853]
[1731510297720,7.32e-05,212.94,212.69,23.34884304]
[1731510299250,7.32e-05,212.94,212.73,23.9461174]
[1731510299430,7.32e-05,212.94,212.71,23.45956906]
[1731510299742,7.32e-05,212.94,212.71,28.82034758]
[1731510299946,7.32e-05,212.94,212.73,23.9461174]
[1731510300119,11.7654732,212.97,212.73,29.30689592]
[1731510300324,11.7654732,212.97,212.69,17.30825413]
[1731510300325,11.7654732,212.97,212.77,23.67894882]
[1731510300546,11.7654732,212.97,212.75,23.25840741]
[1731510300726,11.7654732,212.97,212.77,23.67894882]
[1731510300927,11.7654732,212.97,212.76,70.0]
[1731510300928,11.7654732,212.97,212.76,23.18969577]
[1731510301138,10.2127732,212.97,212.76,23.18969577]
[1731510301421,10.2127732,212.97,212.75,5.36077852]
[1731510301422,10.2127732,212.97,212.77,11.765474]
[1731510301640,24.2427732,212.97,212.75,6.16906481]
[1731510301829,10.2127732,212.97,212.7,23.17091181]
[1731510302236,10.2127732,212.97,212.69,17.30825413]
[1731510302237,0.12549,212.96,212.71,42.22630806]
[1731510302443,37.932374,212.96,212.7,23.17091181]
[1731510302622,0.1,212.91,212.57,23.75694475]
[1731510302828,0.12549,212.92,212.58,70.0]
[1731510303130,0.12549,212.9,212.59,23.55805569]
[1731510303331,23.776884,212.87,212.59,28.91883421]
[1731510303532,0.1,213.04,212.63,23.5993979]
[1731510303748,10.3127732,212.97,212.65,23.87492587]
[1731510304042,0.12549,212.96,212.65,23.87492587]
[1731510304249,0.1,212.85,212.62,4.682]
[1731510304454,10.08749,212.91,212.62,4.682]
[1731510304455,14.03,212.83,212.62,4.682]
[1731510304745,14.03,212.83,212.63,23.5993979]
[1731510304948,23.776884,212.82,212.63,23.5993979]
[1731510305129,23.776884,212.83,212.63,23.5993979]
[1731510305752,9.962,212.91,212.68,23.0662811]
[1731510305924,13.2368,212.94,212.7,23.17091181]
[1731510306240,13.2368,212.94,212.7,28.53169033]
[1731510306418,13.2368,212.94,212.73,70.0]
[1731510306618,13.2368,212.94,212.74,29.16528838]
[1731510306839,27.2668,212.94,212.7,23.17091181]
[1731510307029,0.12549,212.93,212.69,23.34884304]
[1731510307239,0.12549,212.93,212.66,23.21542044]
[1731510307422,0.12549,212.93,212.61,5.36077852]
[1731510307423,0.22549,212.93,212.63,23.5993979]
[1731510307626,0.22549,212.93,212.7,7.0]
[1731510307627,0.1,212.89,212.7,7.0]
[1731510307823,0.1,212.91,212.7,7.0]
[1731510307824,0.1,212.86,212.7,7.0]
[1731510308049,0.22549,212.78,212.7,1.83058656]
[1731510308231,0.1,212.73,212.51,1.878369]
[1731510308548,0.1,212.67,212.42,23.51919859]
[1731510308847,14.03,212.56,212.3,46.68959582]
[1731510309059,14.03,212.56,212.29,23.80562263]
[1731510309060,0.12549,212.55,212.29,23.80562263]
[1731510309344,13.1573,212.57,212.3,23.36988374]
[1731510309523,13.1573,212.57,212.31,23.24851786]
[1731510309719,13.1573,212.57,212.33,23.00923979]
[1731510309941,13.1573,212.57,212.34,23.33214781]
[1731510310132,0.12549,212.55,212.25,23.28963078]
[1731510310334,0.1,212.54,212.27,23.22014468]
[1731510310534,37.806884,212.56,212.27,23.22014468]
[1731510310535,37.906884,212.56,212.27,23.22014468]
[1731510310737,37.806884,212.56,212.27,23.22014468]
[1731510310947,0.1,212.53,212.27,23.22014468]
[1731510311245,37.806884,212.56,212.27,23.22014468]
[1731510311646,37.806884,212.56,212.29,23.80562263]
[1731510311831,37.806884,212.56,212.29,29.16640115]
[1731510312031,23.776884,212.56,212.29,29.16640115]
[1731510312324,13.1573,212.57,212.31,23.24851786]
[1731510312526,13.1573,212.57,212.33,23.00923979]
[1731510312757,13.1573,212.57,212.35,23.43827834]
[1731510313321,13.1573,212.57,212.28,23.66744341]
[1731510313520,13.1573,212.57,212.28,29.02822193]
[1731510313743,23.776884,212.56,212.28,29.02822193]
[1731510313946,13.1573,212.57,212.31,23.24851786]
[1731510314152,5.9704,212.57,212.4,23.19772433]
[1731510314326,37.34639685,212.8,212.4,23.19772433]
[1731510314327,0.1,212.78,212.4,23.19772433]
[1731510314525,0.1,212.78,212.32,34.91203265]
[1731510314526,0.1,212.67,212.37,23.89470071]
[1731510314725,0.1,212.72,212.37,29.25547923]
[1731510314928,9.962,212.64,212.37,29.25547923]
[1731510315140,9.962,212.64,212.39,23.58964942]
[1731510315650,10.062,212.64,212.33,23.00923979]
[1731510315826,0.1,212.58,212.33,5.36077852]
[1731510316147,0.1,212.54,212.24,23.56750016]
[1731510316323,0.1,212.49,212.24,23.56750016]
[1731510316522,0.1,212.58,212.25,23.28963078]
[1731510316837,0.1,212.51,212.25,5.36077852]
[1731510317037,23.776884,212.49,212.24,23.56750016]
[1731510317239,23.776884,212.49,212.25,23.38963078]
[1731510317437,23.776884,212.49,212.26,23.46032113]
[1731510317627,23.776884,212.49,212.25,0.1]
[1731510317628,23.776884,212.49,212.25,5.36077852]
[1731510317834,23.776884,212.49,212.24,23.56750016]
[1731510318348,23.776884,212.49,212.24,0.4800608]
[1731510318553,23.776884,212.49,212.24,23.56750016]
[1731510319130,23.776884,212.49,212.27,0.1]
[1731510319334,9.962,212.5,212.27,23.32014468]
[1731510319540,9.962,212.5,212.31,0.1]
[1731510319745,7.01,212.61,212.36,23.34683386]
[1731510319952,4.5379,212.61,212.34,23.33214781]
[1731510320250,4.5379,212.61,212.35,23.43827834]
[1731510320550,23.337155,212.61,212.33,23.00923979]
[1731510320847,23.337155,212.61,212.24,0.4800608]
[1731510320848,23.337155,212.61,212.28,23.66744341]
[1731510321153,23.337155,212.61,212.36,23.34683386]
[1731510321351,4.5379,212.61,212.39,0.1]
[1731510321552,4.5379,212.61,212.37,0.1]
[1731510321553,1.42,212.61,212.37,0.1]
[1731510321757,1.42,212.61,212.36,23.34683386]
[1731510321931,1.42,212.61,212.29,23.80562263]
[1731510322132,1.42,212.61,212.27,23.22014468]
[1731510322536,1.42,212.61,212.3,23.36988374]
[1731510322733,23.776884,212.6,212.3,23.36988374]
[1731510323127,23.776884,212.6,212.36,23.34683386]
[1731510323338,0.1,212.78,212.42,23.61919859]
[1731510323547,22.08457618,212.91,212.27,0.1]
[1731510323548,37.34639685,212.72,212.37,5.36077852]
[1731510323748,37.34639685,212.72,212.31,23.24851786]
[1731510323952,37.34639685,212.72,212.31,34.63879792]
[1731510324157,0.1,212.77,212.39,23.58964942]
[1731510324332,18.801421,212.77,212.49,23.34048822]
[1731510324533,18.801421,212.77,212.53,23.62201118]
[1731510324774,47.58857303,212.91,212.44,70.0]
[1731510324775,10.34217618,212.91,212.57,23.75694475]
[1731510324953,10.34217618,212.91,212.59,23.55805569]
[1731510325163,10.34217618,212.91,212.55,70.0]
[1731510325164,10.34217618,212.91,212.61,23.39821093]
[1731510325462,18.779897,212.9,212.65,23.87492587]
[1731510325763,0.1,212.99,212.62,23.36576519]
[1731510325938,0.1,212.99,212.63,23.5993979]
[1731510326138,0.1,212.99,212.65,23.87492587]
[1731510326454,14.03,212.97,212.62,29.47842412]
[1731510326654,18.775475,212.98,212.69,23.34884304]
[1731510327040,18.775475,212.98,212.56,13.1825]
[1731510327041,37.24639685,212.93,212.55,23.92710722]
[1731510327271,14.13,212.96,212.58,23.0846197]
[1731510327559,18.775475,212.98,212.62,23.26576519]
[1731510327762,18.875475,212.98,212.63,23.6993979]
[1731510327929,0.1,212.96,212.61,0.1]
[1731510328141,0.1,212.96,212.62,23.26576519]
[1731510328559,0.1,212.91,212.58,23.0846197]
[1731510328862,37.24639685,212.95,212.57,23.75694475]
[1731510328863,0.1,212.88,212.57,23.75694475]
[1731510329159,0.1,212.87,212.51,23.37087926]
[1731510329343,0.22549,212.87,212.51,23.37087926]
[1731510329538,0.22549,212.87,212.44,13.1825]
[1731510329539,0.1,212.83,212.5,23.49506047]
[1731510329870,0.1,212.79,212.42,23.51919859]
[1731510330157,0.1,212.77,212.4,23.19772433]
[1731510330342,0.22549,212.77,212.43,0.1]
[1731510330541,0.22549,212.77,212.39,23.58964942]
[1731510330739,0.12549,212.77,212.48,0.1]
[1731510330958,0.12549,212.77,212.42,23.51919859]
[1731510331150,0.22549,212.77,212.41,24.00267406]
[1731510331348,0.1,212.73,212.36,23.34683386]
[1731510331560,0.1,212.68,212.36,23.34683386]
[1731510331854,0.1,212.66,212.35,6.25237703]
[1731510332056,23.776884,212.68,212.36,0.1]
[1731510332471,0.12549,212.68,212.42,0.1]
[1731510332643,23.776884,212.69,212.63,37.8708994]
[1731510332967,23.776884,212.69,212.52,37.8708994]
[1731510333151,6.01752637,212.93,212.52,37.8708994]
[1731510333152,37.8708994,212.74,212.63,37.8708994]
[1731510333462,37.8708994,212.76,212.65,37.8708994]
[1731510333647,161.6,212.84,212.36,0.1]
[1731510333648,37.8708994,212.72,212.36,0.1]
[1731510333851,0.1,212.75,212.28,93.66744341]
[1731510333852,0.12549,212.65,212.33,6.29356533]
[1731510334058,0.12549,212.65,212.55,37.8708994]
[1731510334244,37.8708994,212.66,212.57,37.8708994]
[1731510334446,37.8708994,212.7,212.59,37.8708994]
[1731510334737,37.8708994,212.68,212.59,37.8708994]
[1731510334943,37.8708994,212.68,212.52,37.8708994]
[1731510334944,23.902374,212.67,212.57,37.8708994]
[1731510335145,37.8708994,212.68,212.41,37.8708994]
[1731510335146,23.902374,212.65,212.55,37.8708994]
[1731510335365,23.902374,212.65,212.57,37.8708994]
[1731510335545,23.776884,212.67,212.59,37.8708994]
[1731510335956,37.8708994,212.74,212.63,37.8708994]
[1731510336152,37.8708994,212.74,212.52,37.8708994]
[1731510336153,37.8708994,212.72,212.61,37.8708994]
[1731510336353,37.8708994,212.74,212.63,37.8708994]
[1731510336844,37.8708994,212.81,212.71,37.8708994]
[1731510337045,48.21587622,212.85,212.52,37.8708994]
[1731510337275,48.21587622,212.85,212.74,37.8708994]
[1731510337562,17.25818918,212.85,212.74,37.8708994]
[1731510337763,17.25818918,212.85,212.54,0.1]
[1731510337764,10.34497682,212.85,212.54,0.1]
[1731510337963,10.34497682,212.85,212.77,37.8708994]
[1731510338165,6.91849156,212.89,212.81,37.8708994]
[1731510338350,37.8708994,212.93,212.83,37.8708994]
[1731510338556,0.12549,212.9,212.79,37.8708994]
[1731510338752,37.8708994,212.87,212.77,37.8708994]
[1731510338942,6.92238908,212.93,212.77,37.8708994]
[1731510338943,14.03,212.88,212.77,37.8708994]
[1731510339148,37.8708994,212.89,212.79,37.8708994]
[1731510339358,37.8708994,212.91,212.81,37.8708994]
[1731510339555,37.8708994,212.94,212.83,37.8708994]
[1731510339762,37.8708994,212.96,212.85,37.8708994]
[1731510340072,14.03,213.01,212.91,37.8708994]
[1731510340276,0.4800608,213.05,212.85,37.8708994]
[1731510340451,0.4800608,213.05,212.86,0.1]
[1731510340766,0.4800608,213.05,212.85,37.8708994]
[1731510340767,0.4800608,213.05,213.04,37.8708994]
[1731510341071,0.1,212.86,212.63,37.8708994]
[1731510341256,0.12549,212.68,212.57,37.8708994]
[1731510341953,0.12549,212.62,212.53,37.8708994]
[1731510342153,37.8708994,212.59,212.49,37.8708994]
[1731510342355,37.9963894,212.57,212.47,0.0575656]
[1731510342652,37.9708994,212.63,212.47,0.0575656]
[1731510342653,23.776884,212.54,212.47,0.0575656]
[1731510343463,0.1,212.74,212.52,37.8708994]
[1731510343664,37.8708994,212.57,212.47,0.0575656]
[1731510343875,23.776884,212.56,212.48,37.8708994]
[1731510344175,23.776884,212.56,212.49,37.8708994]
[1731510344375,23.776884,212.56,212.51,37.8708994]
[1731510344549,23.776884,212.56,212.49,37.8708994]
[1731510344750,0.12549,212.55,212.49,37.8708994]
[1731510344948,0.12549,212.55,212.47,37.928465]
[1731510345154,23.902374,212.53,212.47,0.0575656]
[1731510345368,23.776884,212.53,212.5,37.8708994]
[1731510345551,23.776884,212.53,212.47,0.0575656]
[1731510346775,4.7002,212.76,212.47,0.0575656]
[1731510346976,161.6,212.78,212.47,0.0575656]
[1731510346977,37.8708994,212.69,212.58,37.8708994]
[1731510347366,0.12549,212.68,212.58,37.8708994]
[1731510347576,0.12549,212.64,212.54,37.8708994]
[1731510348076,37.8708994,212.63,212.54,37.8708994]
[1731510348374,37.8708994,212.65,212.56,37.8708994]
[1731510348586,37.8708994,212.69,212.58,37.8708994]
[1731510348757,37.8708994,212.67,212.58,37.8708994]
[1731510349075,37.8708994,212.73,212.52,37.8708994]
[1731510349289,37.8708994,212.75,212.64,37.8708994]
[1731510349480,37.8708994,212.73,212.62,37.8708994]
[1731510349660,37.8708994,212.71,212.6,37.8708994]
[1731510350061,0.12549,212.7,212.6,37.8708994]
[1731510350458,37.8708994,212.73,212.62,37.8708994]
[1731510350663,18.795005,212.72,212.64,37.8708994]
[1731510350878,18.795005,212.72,212.62,37.8708994]
[1731510351180,18.795005,212.72,212.64,37.8708994]
[1731510351559,37.8708994,212.73,212.62,37.8708994]
[1731510351769,18.793725,212.74,212.64,37.8708994]
[1731510351981,37.8708994,212.73,212.62,37.8708994]
[1731510352167,0.12549,212.7,212.62,37.8708994]
[1731510352479,14.15549,212.7,212.6,37.8708994]
[1731510352686,14.15549,212.7,212.62,37.8708994]
[1731510352863,23.776884,212.69,212.52,37.8708994]
[1731510353063,23.776884,212.69,212.64,37.8708994]
[1731510353367,37.8708994,212.76,212.53,0.1]
[1731510353567,0.12549,212.72,212.65,37.8708994]
[1731510353781,18.793794,212.73,212.65,37.8708994]
[1731510353968,161.6,212.91,212.67,37.8708994]
[1731510353969,37.8708994,212.78,212.67,37.8708994]
[1731510354166,37.8708994,212.78,212.52,37.8708994]
[1731510354167,18.792009,212.75,212.69,37.8708994]
[1731510354375,32.822009,212.75,212.65,37.8708994]
[1731510354575,0.12549,212.74,212.65,37.8708994]
[1731510354763,32.822009,212.75,212.68,37.8708994]
[1731510354967,14.03,212.75,212.7,37.8708994]
[1731510355286,18.790419,212.77,212.72,37.8708994]
[1731510355479,14.03,212.8,212.72,37.8708994]
[1731510355669,14.15549,212.79,212.72,37.8708994]
[1731510355870,18.788697,212.8,212.78,37.8708994]
[1731510356073,37.8708994,212.91,212.79,37.8708994]
[1731510356383,37.8708994,212.96,212.79,37.8708994]
[1731510356384,14.03,212.88,212.79,37.8708994]
[1731510356580,18.781668,212.99,212.79,37.8708994]
[1731510356581,14.03,212.9,212.79,37.8708994]
[1731510356783,14.03,212.9,212.83,37.8708994]
[1731510356991,37.8708994,212.97,212.87,37.8708994]
[1731510357166,14.41183,213.0,212.93,37.8708994]
[1731510357486,0.38183,213.0,212.99,37.8708994]
[1731510358660,0.38183,213.0,212.99,75.7417988]
[1731510358864,0.38183,213.0,212.99,37.8708994]
[1731510359067,0.38183,213.0,212.99,75.8417988]
[1731510360266,0.38183,213.0,212.99,75.7417988]
[1731510360765,0.38183,213.0,212.99,37.8708994]
[1731510361178,0.12549,212.99,212.94,37.8708994]
[1731510361690,14.15549,212.99,212.9,37.8708994]
[1731510362076,14.15549,212.99,212.92,37.8708994]
[1731510362077,0.12549,212.99,212.92,37.8708994]
[1731510362274,0.12549,212.99,212.96,37.8708994]
[1731510362587,0.12549,212.99,212.92,37.8708994]
[1731510362764,0.12549,212.99,212.94,37.8708994]
[1731510362963,4.92069,212.99,212.85,37.8708994]
[1731510363168,0.12549,212.97,212.74,37.8708994]
[1731510363368,14.15549,212.88,212.82,37.8708994]
[1731510363583,23.776884,212.87,212.82,37.8708994]
[1731510364170,0.12549,212.86,212.74,37.9708994]
[1731510364373,37.806884,212.85,212.64,0.1]
[1731510364573,0.12549,212.84,212.62,12.7081]
[1731510364783,0.12549,212.84,212.59,0.1]
[1731510365175,0.12549,212.84,212.62,0.1]
[1731510365370,23.776884,212.83,212.76,37.8708994]
[1731510365591,0.12549,212.79,212.76,37.8708994]
[1731510365771,0.12549,212.79,212.74,37.8708994]
[1731510365972,0.12549,212.79,212.63,37.8708994]
[1731510365973,37.8708994,212.9,212.77,37.8708994]
[1731510366190,37.8708994,212.88,212.79,37.8708994]
[1731510366490,161.6,212.98,212.81,37.8708994]
[1731510366491,0.12549,212.87,212.81,37.8708994]
[1731510366669,0.12549,212.87,212.83,37.8708994]
[1731510366871,37.8708994,212.94,212.83,37.8708994]
[1731510367275,0.1,212.98,212.6,0.1]
[1731510367276,37.8708994,212.86,212.6,0.1]
[1731510367477,37.8708994,212.82,212.72,37.8708994]
[1731510367698,51.9008994,212.82,212.72,37.8708994]
[1731510368296,0.12549,212.73,212.64,37.8708994]
[1731510368472,0.12549,212.69,212.6,37.8708994]
[1731510368676,0.12549,212.69,212.58,37.8708994]
[1731510368677,0.12549,212.67,212.58,37.8708994]
[1731510368893,4.6998,212.78,212.5,0.1]
[1731510369189,37.8708994,212.85,212.47,0.0575656]
[1731510369190,0.12549,212.73,212.48,0.1]
[1731510369570,0.12549,212.73,212.47,0.0575656]
[1731510369772,37.8708994,212.68,212.58,37.8708994]
[1731510369973,0.12549,212.63,212.54,37.8708994]
[1731510370283,0.12549,212.63,212.58,37.8708994]
[1731510370473,0.12549,212.63,212.52,37.8708994]
[1731510370474,0.12549,212.63,212.6,37.8708994]
[1731510370788,23.776884,212.67,212.62,37.8708994]
[1731510371295,23.776884,212.67,212.64,37.8708994]
[1731510371596,0.12549,212.66,212.58,37.8708994]
[1731510371894,23.902374,212.64,212.47,0.0575656]
[1731510372087,23.902374,212.64,212.57,37.8708994]
[1731510372390,161.6,212.76,212.52,37.8708994]
[1731510372391,4.7996,212.79,212.61,37.8708994]
[1731510372596,37.8708994,212.71,212.61,37.8708994]
[1731510372969,37.8708994,212.71,212.52,37.8708994]
[1731510372970,37.8708994,212.69,212.59,37.8708994]
[1731510373180,0.12549,212.64,212.55,37.8708994]
[1731510373375,0.12549,212.64,212.57,37.8708994]
[1731510373776,0.12549,212.65,212.59,37.8708994]
[1731510373986,18.798004,212.81,212.64,37.8708994]
[1731510373987,37.8708994,212.73,212.64,37.8708994]
[1731510374401,37.8708994,212.77,212.68,37.8708994]
[1731510374578,37.8708994,212.8,212.7,37.8708994]
[1731510374775,18.798004,212.81,212.74,37.8708994]
[1731510374975,37.8708994,212.86,212.78,37.8708994]
[1731510375176,37.8708994,212.86,212.76,37.8708994]
[1731510375378,37.8708994,212.88,212.78,37.8708994]
[1731510375593,37.8708994,212.88,212.8,37.8708994]
[1731510375790,0.12549,212.86,212.78,37.8708994]
[1731510376080,14.03,212.79,212.48,12.0929]
[1731510376293,37.8708994,212.67,212.58,37.8708994]
[1731510376599,0.12549,212.68,212.63,37.8708994]
[1731510377101,161.6,212.84,212.47,0.1575656]
[1731510377102,37.8708994,212.77,212.66,37.8708994]
[1731510377403,0.12549,212.75,212.66,37.8708994]
[1731510377591,37.8708994,212.71,212.63,37.8708994]
[1731510377901,23.902374,212.66,212.57,37.8708994]
[1731510378078,23.902374,212.63,212.55,37.8708994]
[1731510378395,23.902374,212.63,212.47,0.0575656]
[1731510378396,23.902374,212.63,212.59,35.5267994]
[1731510378595,23.902374,212.63,212.52,37.8708994]
[1731510378596,23.776884,212.63,212.53,0.1]
[1731510378799,0.1,212.86,212.61,37.8708994]
[1731510378999,37.8708994,212.78,212.68,37.8708994]
[1731510379173,0.12549,212.73,212.61,37.8708994]
[1731510379382,0.1,212.79,212.52,37.8708994]
[1731510379383,0.12549,212.7,212.52,37.8708994]
[1731510379606,37.8708994,212.69,212.59,37.8708994]
[1731510380075,37.8708994,212.71,212.61,37.8708994]
[1731510380276,23.776884,212.68,212.59,37.8708994]
[1731510380496,23.776884,212.68,212.61,37.8708994]
[1731510380680,37.8708994,212.71,212.61,37.8708994]
[1731510381193,0.79133195,212.73,212.57,37.8708994]
[1731510381194,37.8708994,212.67,212.57,37.8708994]
[1731510381401,37.8708994,212.65,212.55,37.8708994]
[1731510381702,0.12549,212.64,212.55,37.8708994]
[1731510381904,23.902374,212.64,212.55,33.1868994]
[1731510382105,23.776884,212.64,212.55,37.8708994]